[Event "*** SCC Grand Prix: Titled Tuesday Blitz"]
[Site "Chess.com"]
[Date "2020.07.07"]
[Round "3"]
[White "giantslayer83"]
[Black "nikitakhoroshev"]
[Result "0-1"]
[WhiteElo "2720"]
[BlackElo "2517"]
[TimeControl "180+1"]
[EndTime "10:30:03 PDT"]
[Termination "nikitakhoroshev won by resignation"]

1. d4 {[%clk 0:03:00.9]} 1... Nf6 {[%clk 0:02:56.1]} 2. c4 {[%clk 0:03:00.9]}
2... d6 {[%clk 0:02:55.6]} 3. Nf3 {[%clk 0:02:59.4]} 3... Nbd7 {[%clk
0:02:55.3]} 4. Nc3 {[%clk 0:02:59.2]} 4... e5 {[%clk 0:02:54.4]} 5. g3 {[%clk
0:02:59]} 5... Be7 {[%clk 0:02:53.6]} 6. Bg2 {[%clk 0:02:59.3]} 6... c6 {[%clk
0:02:53.9]} 7. O-O {[%clk 0:02:59.1]} 7... e4 {[%clk 0:02:53.8]} 8. Ng5 {[%clk
0:02:49.4]} 8... d5 {[%clk 0:02:52.8]} 9. cxd5 {[%clk 0:02:49.6]} 9... cxd5
{[%clk 0:02:53.7]} 10. f3 {[%clk 0:02:35.6]} 10... exf3 {[%clk 0:02:53]} 11.
exf3 {[%clk 0:02:18]} 11... h6 {[%clk 0:02:50.5]} 12. Nh3 {[%clk 0:02:17.3]}
12... O-O {[%clk 0:02:50.9]} 13. Nf4 {[%clk 0:02:14.4]} 13... Nb6 {[%clk
0:02:50.7]} 14. b3 {[%clk 0:02:14.5]} 14... Bb4 {[%clk 0:02:47.3]} 15. Bb2
{[%clk 0:02:12.8]} 15... Re8 {[%clk 0:02:47.5]} 16. Nd3 {[%clk 0:02:12.2]} 16...
Bd6 {[%clk 0:02:44.6]} 17. Qd2 {[%clk 0:02:10.7]} 17... a6 {[%clk 0:02:42.3]}
18. Rae1 {[%clk 0:02:07.8]} 18... Bf5 {[%clk 0:02:41.2]} 19. Ne5 {[%clk
0:01:50.1]} 19... Rc8 {[%clk 0:02:35.2]} 20. g4 {[%clk 0:01:42.1]} 20... Bh7
{[%clk 0:02:33.5]} 21. h3 {[%clk 0:01:38.7]} 21... Bb4 {[%clk 0:02:23.7]} 22. a3
{[%clk 0:01:37.7]} 22... Bxc3 {[%clk 0:02:11.4]} 23. Bxc3 {[%clk 0:01:38.6]}
23... Nbd7 {[%clk 0:02:10.4]} 24. Ba5 {[%clk 0:01:22.9]} 24... b6 {[%clk
0:02:06.8]} 25. Bc3 {[%clk 0:01:22.4]} 25... Nf8 {[%clk 0:02:05.6]} 26. Rc1
{[%clk 0:01:14]} 26... Ne6 {[%clk 0:02:04.5]} 27. Rfe1 {[%clk 0:01:06.1]} 27...
g5 {[%clk 0:02:02.8]} 28. Bf1 {[%clk 0:01:05]} 28... b5 {[%clk 0:01:53.5]} 29.
Ba5 {[%clk 0:01:02.4]} 29... Qd6 {[%clk 0:01:52.9]} 30. b4 {[%clk 0:00:47.2]}
30... Nf4 {[%clk 0:01:34]} 31. Rc5 {[%clk 0:00:40]} 31... Nd7 {[%clk 0:01:31.8]}
32. Nxd7 {[%clk 0:00:25.3]} 32... Qxd7 {[%clk 0:01:32.7]} 33. Bb6 {[%clk
0:00:22.8]} 33... Rxe1 {[%clk 0:01:30.9]} 34. Qxe1 {[%clk 0:00:22.7]} 34... Re8
{[%clk 0:01:31.4]} 35. Qf2 {[%clk 0:00:22.4]} 35... Bd3 {[%clk 0:01:22.8]} 36.
Bc7 {[%clk 0:00:22]} 36... Bxf1 {[%clk 0:01:13.2]} 37. Bxf4 {[%clk 0:00:21.4]}
37... gxf4 {[%clk 0:01:08.1]} 38. Kxf1 {[%clk 0:00:21.4]} 38... Re3 {[%clk
0:01:06.1]} 39. Rc2 {[%clk 0:00:17.6]} 39... Qa7 {[%clk 0:01:00.1]} 40. Rc8+
{[%clk 0:00:14.1]} 40... Kg7 {[%clk 0:00:59.5]} 41. Rc5 {[%clk 0:00:13.7]} 41...
Qd7 {[%clk 0:00:57]} 42. Kg2 {[%clk 0:00:13.7]} 42... Qe6 {[%clk 0:00:56.2]} 43.
Rc2 {[%clk 0:00:13.8]} 43... Qf6 {[%clk 0:00:55]} 44. Rd2 {[%clk 0:00:13.1]}
44... Rxa3 {[%clk 0:00:54.4]} 45. h4 {[%clk 0:00:10.2]} 45... Re3 {[%clk
0:00:53.3]} 46. h5 {[%clk 0:00:09.2]} 46... Qe7 {[%clk 0:00:50.9]} 47. Rc2
{[%clk 0:00:08.8]} 47... Qxb4 {[%clk 0:00:49.3]} 48. Ra2 {[%clk 0:00:07.3]}
48... Qxd4 {[%clk 0:00:45.9]} 49. Rxa6 {[%clk 0:00:06.8]} 49... Qe5 {[%clk
0:00:46]} 50. Ra2 {[%clk 0:00:06.1]} 50... b4 {[%clk 0:00:46]} 51. Qd2 {[%clk
0:00:04.9]} 51... b3 {[%clk 0:00:46.1]} 52. Rb2 {[%clk 0:00:05]} 52... Qc3
{[%clk 0:00:42.9]} 53. Kf2 {[%clk 0:00:03.8]} 53... d4 {[%clk 0:00:40.2]} 54.
Qxc3 {[%clk 0:00:03.3]} 54... dxc3 {[%clk 0:00:33.9]} 55. Rxb3 {[%clk
0:00:03.1]} 55... c2 {[%clk 0:00:34.2]} 0-1

[Event "*** SCC Grand Prix: Titled Tuesday Blitz"]
[Site "Chess.com"]
[Date "2020.07.07"]
[Round "3"]
[White "mattcolins2025"]
[Black "FMKonstantin_Twitch"]
[Result "1/2-1/2"]
[WhiteElo "2381"]
[BlackElo "2558"]
[TimeControl "180+1"]
[EndTime "10:30:06 PDT"]
[Termination "Game drawn by stalemate"]

1. d4 {[%clk 0:03:00.9]} 1... Nf6 {[%clk 0:02:58.2]} 2. c4 {[%clk 0:03:01.4]}
2... c5 {[%clk 0:02:53.7]} 3. d5 {[%clk 0:03:01.4]} 3... e6 {[%clk 0:02:53.7]}
4. Nc3 {[%clk 0:03:01.3]} 4... exd5 {[%clk 0:02:53.7]} 5. cxd5 {[%clk
0:03:02.2]} 5... d6 {[%clk 0:02:54.4]} 6. Nf3 {[%clk 0:03:02.8]} 6... g6 {[%clk
0:02:54.9]} 7. Bf4 {[%clk 0:03:03.2]} 7... Bg7 {[%clk 0:02:55.6]} 8. h3 {[%clk
0:03:03.5]} 8... O-O {[%clk 0:02:55.7]} 9. e3 {[%clk 0:03:04.1]} 9... a6 {[%clk
0:02:56.3]} 10. a4 {[%clk 0:03:04.5]} 10... Re8 {[%clk 0:02:54.6]} 11. Nd2
{[%clk 0:03:02.7]} 11... Nh5 {[%clk 0:02:42.3]} 12. Bh2 {[%clk 0:03:01.2]} 12...
Be5 {[%clk 0:02:42.1]} 13. Be2 {[%clk 0:02:55.5]} 13... Bxh2 {[%clk 0:02:40.8]}
14. Bxh5 {[%clk 0:02:51.5]} 14... Be5 {[%clk 0:02:40]} 15. Bf3 {[%clk
0:02:50.1]} 15... Qh4 {[%clk 0:02:18.1]} 16. O-O {[%clk 0:02:48.9]} 16... Nd7
{[%clk 0:02:14.5]} 17. Be2 {[%clk 0:02:25.7]} 17... Bg7 {[%clk 0:02:04]} 18. Nc4
{[%clk 0:02:18.6]} 18... Qe7 {[%clk 0:02:00.4]} 19. Bd3 {[%clk 0:02:08.5]} 19...
b6 {[%clk 0:01:53.2]} 20. Ne4 {[%clk 0:02:06.1]} 20... Bb7 {[%clk 0:01:22.1]}
21. Nexd6 {[%clk 0:02:03.5]} 21... Bxd5 {[%clk 0:01:20.4]} 22. Nxe8 {[%clk
0:02:03.1]} 22... Rxe8 {[%clk 0:01:19.5]} 23. e4 {[%clk 0:01:53.3]} 23... Bxc4
{[%clk 0:01:03.4]} 24. Bxc4 {[%clk 0:01:52.4]} 24... Bxb2 {[%clk 0:01:03.9]} 25.
Rb1 {[%clk 0:01:51.9]} 25... Bd4 {[%clk 0:01:04.2]} 26. Bxa6 {[%clk 0:01:50.8]}
26... Qxe4 {[%clk 0:00:50.4]} 27. Bb5 {[%clk 0:01:41.8]} 27... Rd8 {[%clk
0:00:42]} 28. Qg4 {[%clk 0:01:23.4]} 28... Qxg4 {[%clk 0:00:39.1]} 29. hxg4
{[%clk 0:01:23.9]} 29... Ne5 {[%clk 0:00:39.8]} 30. g5 {[%clk 0:01:21.7]} 30...
Rd6 {[%clk 0:00:29.4]} 31. Rbd1 {[%clk 0:01:05.6]} 31... Kg7 {[%clk 0:00:27.3]}
32. Kh2 {[%clk 0:00:55.5]} 32... h5 {[%clk 0:00:18.3]} 33. gxh6+ {[%clk
0:00:51.8]} 33... Kxh6 {[%clk 0:00:19.2]} 34. f3 {[%clk 0:00:52.2]} 34... f5
{[%clk 0:00:17.6]} 35. Rfe1 {[%clk 0:00:50.1]} 35... Rf6 {[%clk 0:00:17.2]} 36.
Rxd4 {[%clk 0:00:47.2]} 36... Nxf3+ {[%clk 0:00:17.3]} 37. gxf3 {[%clk
0:00:47.5]} 37... cxd4 {[%clk 0:00:18]} 38. Rd1 {[%clk 0:00:47.2]} 38... Rd6
{[%clk 0:00:17.7]} 39. f4 {[%clk 0:00:46.7]} 39... Kh5 {[%clk 0:00:17.7]} 40.
Kg3 {[%clk 0:00:46.3]} 40... g5 {[%clk 0:00:18]} 41. Be8+ {[%clk 0:00:43]} 41...
Kh6 {[%clk 0:00:18.2]} 42. Rh1+ {[%clk 0:00:43.1]} 42... Kg7 {[%clk 0:00:18.9]}
43. fxg5 {[%clk 0:00:43.6]} 43... d3 {[%clk 0:00:19.4]} 44. Kf4 {[%clk
0:00:34.2]} 44... Rd5 {[%clk 0:00:19]} 45. Bb5 {[%clk 0:00:29.8]} 45... d2
{[%clk 0:00:18.3]} 46. Rd1 {[%clk 0:00:29.1]} 46... Kg6 {[%clk 0:00:17.7]} 47.
Be8+ {[%clk 0:00:28.6]} 47... Kg7 {[%clk 0:00:17.9]} 48. Ke3 {[%clk 0:00:25.1]}
48... Re5+ {[%clk 0:00:17.9]} 49. Kxd2 {[%clk 0:00:25.4]} 49... Rxe8 {[%clk
0:00:18.4]} 50. Rb1 {[%clk 0:00:25.2]} 50... Re6 {[%clk 0:00:17.7]} 51. Rb5
{[%clk 0:00:19.7]} 51... Kg6 {[%clk 0:00:17.8]} 52. a5 {[%clk 0:00:20.2]} 52...
bxa5 {[%clk 0:00:17.2]} 53. Rxa5 {[%clk 0:00:21.1]} 53... Kxg5 {[%clk 0:00:18]}
54. Ra4 {[%clk 0:00:20.4]} 54... f4 {[%clk 0:00:17.4]} 55. Ra1 {[%clk
0:00:15.3]} 55... f3 {[%clk 0:00:15.4]} 56. Re1 {[%clk 0:00:13.9]} 56... Rf6
{[%clk 0:00:08.8]} 57. Ke3 {[%clk 0:00:12.5]} 57... Re6+ {[%clk 0:00:09.1]} 58.
Kf2 {[%clk 0:00:12.8]} 58... Rxe1 {[%clk 0:00:09.4]} 59. Kxe1 {[%clk 0:00:13.2]}
59... Kh4 {[%clk 0:00:10]} 60. Kf2 {[%clk 0:00:12.7]} 60... Kg4 {[%clk
0:00:10.9]} 61. Kf1 {[%clk 0:00:13.2]} 61... Kf5 {[%clk 0:00:09.4]} 62. Kf2
{[%clk 0:00:12.8]} 62... Kf4 {[%clk 0:00:09.2]} 63. Kf1 {[%clk 0:00:13.1]} 63...
Kg3 {[%clk 0:00:09.1]} 64. Kg1 {[%clk 0:00:13.2]} 64... f2+ {[%clk 0:00:10]} 65.
Kf1 {[%clk 0:00:13.6]} 65... Kf3 {[%clk 0:00:10.9]} 1/2-1/2

[Event "*** SCC Grand Prix: Titled Tuesday Blitz"]
[Site "Chess.com"]
[Date "2020.07.07"]
[Round "3"]
[White "ketster"]
[Black "KaspMagAlpha"]
[Result "1-0"]
[WhiteElo "2443"]
[BlackElo "2235"]
[TimeControl "180+1"]
[EndTime "10:30:06 PDT"]
[Termination "ketster won by resignation"]

1. d4 {[%clk 0:03:00.9]} 1... Nf6 {[%clk 0:02:59.1]} 2. c4 {[%clk 0:03:00.9]}
2... e6 {[%clk 0:02:58.9]} 3. g3 {[%clk 0:03:00.5]} 3... Bb4+ {[%clk 0:02:57.3]}
4. Bd2 {[%clk 0:02:59.8]} 4... Be7 {[%clk 0:02:54.4]} 5. Bg2 {[%clk 0:02:59.8]}
5... O-O {[%clk 0:02:54.2]} 6. Nf3 {[%clk 0:03:00]} 6... b6 {[%clk 0:02:49.6]}
7. Ne5 {[%clk 0:02:57.1]} 7... d5 {[%clk 0:02:49.1]} 8. O-O {[%clk 0:02:57]}
8... Bb7 {[%clk 0:02:44.1]} 9. Nc3 {[%clk 0:02:56.7]} 9... c6 {[%clk 0:02:39.9]}
10. Qa4 {[%clk 0:02:53.7]} 10... Nfd7 {[%clk 0:02:32.9]} 11. Nxd7 {[%clk
0:02:40.9]} 11... Nxd7 {[%clk 0:02:27.3]} 12. e4 {[%clk 0:02:40.4]} 12... dxc4
{[%clk 0:02:23.3]} 13. Qxc4 {[%clk 0:02:39.1]} 13... b5 {[%clk 0:02:22.8]} 14.
Qb3 {[%clk 0:02:31.8]} 14... b4 {[%clk 0:02:22.2]} 15. Na4 {[%clk 0:02:28.5]}
15... a5 {[%clk 0:02:22.1]} 16. Rfd1 {[%clk 0:02:26]} 16... Rc8 {[%clk
0:02:15.2]} 17. Be3 {[%clk 0:02:22.9]} 17... Ba6 {[%clk 0:02:06.9]} 18. Rac1
{[%clk 0:02:15]} 18... Bb5 {[%clk 0:02:06.2]} 19. Nc5 {[%clk 0:02:06.9]} 19...
Nxc5 {[%clk 0:01:51.4]} 20. dxc5 {[%clk 0:02:05.9]} 20... Qc7 {[%clk 0:01:51]}
21. Bf4 {[%clk 0:01:59.1]} 21... e5 {[%clk 0:01:47.3]} 22. Be3 {[%clk
0:01:57.6]} 22... Rcd8 {[%clk 0:01:43.6]} 23. Bf1 {[%clk 0:01:52.3]} 23... Bxf1
{[%clk 0:01:35.8]} 24. Kxf1 {[%clk 0:01:52]} 24... Rxd1+ {[%clk 0:01:35]} 25.
Rxd1 {[%clk 0:01:50.9]} 25... Rd8 {[%clk 0:01:35.4]} 26. Kg2 {[%clk 0:01:40.1]}
26... Rxd1 {[%clk 0:01:32.8]} 27. Qxd1 {[%clk 0:01:39.5]} 27... Qd8 {[%clk
0:01:32.7]} 28. Qa4 {[%clk 0:01:35.7]} 28... Qc7 {[%clk 0:01:30.7]} 29. a3
{[%clk 0:01:34.5]} 29... bxa3 {[%clk 0:01:29.9]} 30. bxa3 {[%clk 0:01:34.6]}
30... Kf8 {[%clk 0:01:27.4]} 31. Qb3 {[%clk 0:01:11]} 31... h6 {[%clk 0:01:23]}
32. Qb6 {[%clk 0:01:01.9]} 32... Qxb6 {[%clk 0:00:48.5]} 33. cxb6 {[%clk
0:01:01.8]} 33... Bd6 {[%clk 0:00:46.8]} 34. b7 {[%clk 0:01:00.3]} 34... Bb8
{[%clk 0:00:46.4]} 35. f4 {[%clk 0:00:53.9]} 35... f6 {[%clk 0:00:44.4]} 36. f5
{[%clk 0:00:44.6]} 36... Ke7 {[%clk 0:00:44.1]} 37. Bc5+ {[%clk 0:00:44.3]}
37... Kf7 {[%clk 0:00:38.7]} 38. a4 {[%clk 0:00:41.8]} 38... g6 {[%clk
0:00:38.3]} 39. g4 {[%clk 0:00:40]} 39... gxf5 {[%clk 0:00:38]} 40. gxf5 {[%clk
0:00:39.7]} 40... Ke8 {[%clk 0:00:37.5]} 41. Kf3 {[%clk 0:00:34]} 41... h5
{[%clk 0:00:35.2]} 42. Ke2 {[%clk 0:00:30.6]} 42... Kd7 {[%clk 0:00:35.2]} 43.
Kd3 {[%clk 0:00:30.3]} 43... Kc7 {[%clk 0:00:35.3]} 44. Be7 {[%clk 0:00:30.3]}
44... Kxb7 {[%clk 0:00:34.4]} 45. Bxf6 {[%clk 0:00:30.6]} 45... Bd6 {[%clk
0:00:33.7]} 46. Bg7 {[%clk 0:00:28.7]} 46... Kc7 {[%clk 0:00:33.6]} 47. f6
{[%clk 0:00:27.1]} 47... Kd7 {[%clk 0:00:33.8]} 48. f7 {[%clk 0:00:27.5]} 48...
Bf8 {[%clk 0:00:06.8]} 49. Bxf8 {[%clk 0:00:27.1]} 49... Ke6 {[%clk 0:00:07]}
50. Bc5 {[%clk 0:00:24.6]} 50... Kxf7 {[%clk 0:00:07]} 51. Bb6 {[%clk
0:00:24.9]} 51... Ke6 {[%clk 0:00:04.1]} 52. Bxa5 {[%clk 0:00:25.1]} 52... Kd7
{[%clk 0:00:05]} 53. Bc3 {[%clk 0:00:24.8]} 53... Kd6 {[%clk 0:00:04.8]} 54. Kc4
{[%clk 0:00:24.9]} 54... Kc7 {[%clk 0:00:02.7]} 55. Bxe5+ {[%clk 0:00:23.9]}
55... Kb6 {[%clk 0:00:03.6]} 56. Bc3 {[%clk 0:00:23.6]} 56... Kc7 {[%clk
0:00:02.7]} 57. a5 {[%clk 0:00:24.1]} 57... Kd7 {[%clk 0:00:03.6]} 58. Kc5
{[%clk 0:00:24]} 58... Kc7 {[%clk 0:00:04.5]} 59. a6 {[%clk 0:00:24.3]} 59...
Kb8 {[%clk 0:00:04.4]} 60. Kxc6 {[%clk 0:00:24.4]} 60... Ka8 {[%clk 0:00:05.3]}
61. Kb6 {[%clk 0:00:23.8]} 61... h4 {[%clk 0:00:06.2]} 62. e5 {[%clk 0:00:22.6]}
62... h3 {[%clk 0:00:07.1]} 63. e6 {[%clk 0:00:23.2]} 63... Kb8 {[%clk
0:00:06.5]} 64. e7 {[%clk 0:00:23.5]} 1-0

[Event "*** SCC Grand Prix: Titled Tuesday Blitz"]
[Site "Chess.com"]
[Date "2020.07.07"]
[Round "3"]
[White "deep306"]
[Black "londonkid"]
[Result "1-0"]
[WhiteElo "2655"]
[BlackElo "2417"]
[TimeControl "180+1"]
[EndTime "10:30:07 PDT"]
[Termination "deep306 won by resignation"]

1. e4 {[%clk 0:03:00]} 1... e6 {[%clk 0:03:00.5]} 2. d4 {[%clk 0:02:59.6]} 2...
d5 {[%clk 0:03:01.2]} 3. Nc3 {[%clk 0:03:00]} 3... Nf6 {[%clk 0:03:01.7]} 4. e5
{[%clk 0:02:58.6]} 4... Nfd7 {[%clk 0:03:01.4]} 5. Nce2 {[%clk 0:02:58.9]} 5...
c5 {[%clk 0:03:01.8]} 6. c3 {[%clk 0:02:59.5]} 6... Nc6 {[%clk 0:03:02.3]} 7.
Nf3 {[%clk 0:03:00.1]} 7... Be7 {[%clk 0:03:01.5]} 8. g3 {[%clk 0:03:00.6]} 8...
O-O {[%clk 0:02:58.3]} 9. Bg2 {[%clk 0:03:01]} 9... b5 {[%clk 0:02:57.3]} 10.
O-O {[%clk 0:03:00.6]} 10... a5 {[%clk 0:02:57.3]} 11. h4 {[%clk 0:02:58.1]}
11... b4 {[%clk 0:02:55.8]} 12. Bg5 {[%clk 0:02:57.6]} 12... h6 {[%clk
0:02:53.7]} 13. Bxe7 {[%clk 0:02:57]} 13... Qxe7 {[%clk 0:02:52.7]} 14. Nf4
{[%clk 0:02:53.6]} 14... Ba6 {[%clk 0:02:51.4]} 15. Re1 {[%clk 0:02:53.5]} 15...
Rfc8 {[%clk 0:02:43.2]} 16. Nh2 {[%clk 0:02:39.2]} 16... bxc3 {[%clk 0:02:42.2]}
17. bxc3 {[%clk 0:02:38.9]} 17... cxd4 {[%clk 0:02:42.5]} 18. cxd4 {[%clk
0:02:39.1]} 18... Nb4 {[%clk 0:02:42.9]} 19. Qg4 {[%clk 0:02:12.8]} 19... Nf8
{[%clk 0:02:41.6]} 20. Rac1 {[%clk 0:01:59.9]} 20... Nd3 {[%clk 0:02:35.4]} 21.
Nxd3 {[%clk 0:01:58.8]} 21... Bxd3 {[%clk 0:02:34]} 22. Nf1 {[%clk 0:01:41.4]}
22... Rxc1 {[%clk 0:02:23.2]} 23. Rxc1 {[%clk 0:01:41.3]} 23... Qa3 {[%clk
0:02:21.7]} 24. Rc7 {[%clk 0:01:29.3]} 24... Qxa2 {[%clk 0:02:16.5]} 25. Qf3
{[%clk 0:01:28.5]} 25... Bf5 {[%clk 0:01:46.3]} 26. g4 {[%clk 0:01:27.7]} 26...
Qb2 {[%clk 0:01:27.1]} 27. gxf5 {[%clk 0:01:26.5]} 27... Qb6 {[%clk 0:01:27.1]}
28. Rxf7 {[%clk 0:01:13.6]} 28... Kxf7 {[%clk 0:01:23.5]} 29. fxe6+ {[%clk
0:01:13.5]} 29... Kg8 {[%clk 0:01:08.2]} 30. Qf7+ {[%clk 0:01:08.9]} 30... Kh7
{[%clk 0:01:08.3]} 31. e7 {[%clk 0:01:08.4]} 31... Ng6 {[%clk 0:00:53.7]} 32.
e8=Q {[%clk 0:00:58.8]} 32... Rxe8 {[%clk 0:00:53.8]} 33. Qxe8 {[%clk
0:00:59.2]} 33... Qxd4 {[%clk 0:00:54.5]} 34. e6 {[%clk 0:00:36.7]} 34... Nxh4
{[%clk 0:00:45.9]} 35. Qd7 {[%clk 0:00:25.4]} 35... Qg4 {[%clk 0:00:30.4]} 36.
Qxd5 {[%clk 0:00:24.7]} 36... Nxg2 {[%clk 0:00:30.3]} 37. Qxg2 {[%clk
0:00:24.5]} 37... Qxe6 {[%clk 0:00:30.9]} 38. Ne3 {[%clk 0:00:19.5]} 38... a4
{[%clk 0:00:29]} 39. Qa8 {[%clk 0:00:19.6]} 39... Qg6+ {[%clk 0:00:24.3]} 40.
Kf1 {[%clk 0:00:18.3]} 40... Qd3+ {[%clk 0:00:22.4]} 41. Kg2 {[%clk 0:00:18.3]}
41... a3 {[%clk 0:00:22.2]} 42. Qa5 {[%clk 0:00:17.7]} 42... Qg6+ {[%clk
0:00:20.9]} 43. Kf3 {[%clk 0:00:17.6]} 43... Qd3 {[%clk 0:00:14.2]} 44. Qa4
{[%clk 0:00:14.2]} 44... Qc3 {[%clk 0:00:11.2]} 45. Kg4 {[%clk 0:00:11.5]} 45...
Qb2 {[%clk 0:00:10]} 46. Qe4+ {[%clk 0:00:11.5]} 46... Kh8 {[%clk 0:00:09.9]}
47. Qe8+ {[%clk 0:00:11.5]} 47... Kh7 {[%clk 0:00:10.5]} 48. Qe4+ {[%clk
0:00:11.2]} 48... Kh8 {[%clk 0:00:10.4]} 49. Nc4 {[%clk 0:00:10.4]} 49... Qxf2
{[%clk 0:00:08.9]} 50. Nxa3 {[%clk 0:00:09.6]} 50... Qf6 {[%clk 0:00:06.6]} 51.
Nc4 {[%clk 0:00:09.3]} 51... Qf1 {[%clk 0:00:03.6]} 52. Ne5 {[%clk 0:00:09.1]}
52... Qg1+ {[%clk 0:00:03.3]} 53. Kh3 {[%clk 0:00:09.2]} 53... Qh1+ {[%clk
0:00:03.6]} 54. Qxh1 {[%clk 0:00:08.6]} 1-0

[Event "*** SCC Grand Prix: Titled Tuesday Blitz"]
[Site "Chess.com"]
[Date "2020.07.07"]
[Round "3"]
[White "Gandrade2"]
[Black "Oligan22"]
[Result "0-1"]
[WhiteElo "2132"]
[BlackElo "2475"]
[TimeControl "180+1"]
[EndTime "10:30:07 PDT"]
[Termination "Oligan22 won on time"]

1. d4 {[%clk 0:03:00.9]} 1... d5 {[%clk 0:02:59.3]} 2. c4 {[%clk 0:03:00.3]}
2... dxc4 {[%clk 0:02:59.5]} 3. Nf3 {[%clk 0:02:59.9]} 3... a6 {[%clk
0:02:59.7]} 4. e3 {[%clk 0:02:59.2]} 4... b5 {[%clk 0:02:59.9]} 5. a4 {[%clk
0:02:55.7]} 5... Bb7 {[%clk 0:02:58.2]} 6. b3 {[%clk 0:02:52.7]} 6... e6 {[%clk
0:02:57.2]} 7. axb5 {[%clk 0:02:52.3]} 7... axb5 {[%clk 0:02:58.1]} 8. Rxa8
{[%clk 0:02:47.4]} 8... Bxa8 {[%clk 0:02:59]} 9. bxc4 {[%clk 0:02:47.5]} 9...
bxc4 {[%clk 0:02:59.9]} 10. Bxc4 {[%clk 0:02:47.1]} 10... Bd6 {[%clk 0:02:59.1]}
11. O-O {[%clk 0:02:46.4]} 11... Nf6 {[%clk 0:02:57.8]} 12. Nbd2 {[%clk
0:02:39.2]} 12... O-O {[%clk 0:02:57.3]} 13. Bb2 {[%clk 0:02:38.5]} 13... Bd5
{[%clk 0:02:56.7]} 14. Bd3 {[%clk 0:02:31.3]} 14... Bb7 {[%clk 0:02:39.5]} 15.
Qe2 {[%clk 0:02:28.6]} 15... Nbd7 {[%clk 0:02:38.8]} 16. e4 {[%clk 0:02:22.4]}
16... Be7 {[%clk 0:02:37.5]} 17. e5 {[%clk 0:02:09.4]} 17... Nd5 {[%clk
0:02:37.2]} 18. Qe4 {[%clk 0:02:08.1]} 18... g6 {[%clk 0:02:37.5]} 19. Rc1
{[%clk 0:01:56.7]} 19... c5 {[%clk 0:02:37.4]} 20. Qe2 {[%clk 0:01:46.9]} 20...
Nf4 {[%clk 0:02:31.3]} 21. Qe3 {[%clk 0:01:43]} 21... Nxd3 {[%clk 0:02:29.6]}
22. Qxd3 {[%clk 0:01:42.5]} 22... Bd5 {[%clk 0:02:28.8]} 23. Ne4 {[%clk
0:01:36.2]} 23... cxd4 {[%clk 0:02:23.7]} 24. Qxd4 {[%clk 0:01:25.2]} 24... Qa8
{[%clk 0:02:17.3]} 25. Nd6 {[%clk 0:01:24.3]} 25... Bxf3 {[%clk 0:02:09.4]} 26.
gxf3 {[%clk 0:01:18.3]} 26... Qxf3 {[%clk 0:02:10.3]} 27. Rc3 {[%clk 0:01:14.6]}
27... Qh5 {[%clk 0:02:02.5]} 28. Re3 {[%clk 0:01:05.3]} 28... Bg5 {[%clk
0:01:54.9]} 29. Ne4 {[%clk 0:00:59.2]} 29... Bxe3 {[%clk 0:01:41.9]} 30. Qxe3
{[%clk 0:00:57.4]} 30... Qg4+ {[%clk 0:01:35.2]} 31. Kf1 {[%clk 0:00:55.7]}
31... Qd1+ {[%clk 0:01:29.3]} 32. Kg2 {[%clk 0:00:55.6]} 32... Qd5 {[%clk
0:01:29.9]} 33. f3 {[%clk 0:00:48.5]} 33... Rc8 {[%clk 0:01:20.4]} 34. Bc3
{[%clk 0:00:38.9]} 34... Qc4 {[%clk 0:01:10.2]} 35. Kh3 {[%clk 0:00:30.6]} 35...
Qf1+ {[%clk 0:01:05.3]} 36. Kg3 {[%clk 0:00:30.2]} 36... Kg7 {[%clk 0:00:48.5]}
37. Nf6 {[%clk 0:00:20.7]} 37... Qd1 {[%clk 0:00:48.5]} 38. Bd2 {[%clk 0:00:17]}
38... Nf8 {[%clk 0:00:24.7]} 39. Qh6+ {[%clk 0:00:13.9]} 39... Kh8 {[%clk
0:00:22.8]} 40. Bg5 {[%clk 0:00:07.1]} 40... Qg1+ {[%clk 0:00:22.6]} 41. Kh3
{[%clk 0:00:07.5]} 41... Qf1+ {[%clk 0:00:22.7]} 42. Kg3 {[%clk 0:00:07.6]}
42... Qe1+ {[%clk 0:00:22.1]} 43. Kh3 {[%clk 0:00:07.9]} 43... Qxe5 {[%clk
0:00:20.6]} 44. Ng4 {[%clk 0:00:06.2]} 44... Qf5 {[%clk 0:00:12.2]} 45. Bf6+
{[%clk 0:00:05.8]} 45... Qxf6 {[%clk 0:00:12.8]} 46. Nxf6 {[%clk 0:00:06.2]}
46... Rd8 {[%clk 0:00:13.3]} 47. Qg5 {[%clk 0:00:05.6]} 47... Ra8 {[%clk
0:00:11.9]} 48. Ne4 {[%clk 0:00:03.7]} 48... Kg7 {[%clk 0:00:10.4]} 49. Qf6+
{[%clk 0:00:03.1]} 49... Kg8 {[%clk 0:00:10.9]} 50. Ng5 {[%clk 0:00:03.5]} 50...
Ra7 {[%clk 0:00:09.7]} 51. Qd4 {[%clk 0:00:03.1]} 51... Ra5 {[%clk 0:00:08.7]}
52. Ne4 {[%clk 0:00:03]} 52... Rf5 {[%clk 0:00:07.8]} 53. Nf6+ {[%clk 0:00:03]}
53... Kh8 {[%clk 0:00:07.7]} 54. Ne8+ {[%clk 0:00:03.2]} 54... e5 {[%clk
0:00:06.1]} 0-1